Cogmind - Beta 13 @@@ ROGUE MODE // 2024.07.31 @ 05:41:55 Player: CatgirlLyra Result: Destroyed by Z9-XCH(R) with Subdweller Laser Performance ------------- Evolutions (0) 0 Regions Visited (3) 600 Robots Destroyed (43) 215 Value Destroyed (1253) 1253 Prototype IDs (4) 80 Alien Tech Used (0) 0 Bonus (-55) -55 TOTAL SCORE: 2093 Bonus ------- Friendly Fire -55 Cogmind --------- Core Integrity 0/250 Matter 6/300 Energy 99/100 System Corruption 7% Temperature Cool (6) Movement Core (150) Ox2 Location -10/Subcaves Parts ------- > --- POWER (1) -------- (None) > --- PROPULSION (2) --- (None) > --- UTILITY (2) ------ Subdweller Optics > --- WEAPON (2) ------- Barrage Gun Battle Cannon > --- INVENTORY (5) ---- High-capacity Storage Unit High-capacity Matter Pod (121) Mini Grenade Launcher Peak State ------------ > --- POWER ------------ Light Angular Momentum Engine > --- PROPULSION ------- Carbon-fiber Leg Myomer Leg > --- UTILITY ---------- Cobbler Unit > --- WEAPON ----------- Autogun Barrage Gun > --- INVENTORY -------- High-capacity Storage Unit High-capacity Matter Pod Beamcaster Mini Grenade Launcher Flail [Rating: 25] Favorites ----------- Power Light Angular Momentum Engine Engine Light Angular Momentum Engine Power Core Light Nuclear Core Propulsion Light Treads Treads Light Treads Leg Myomer Leg Wheel Subdweller Monowheel Utility Large Storage Unit Device Cobbler Unit Storage Large Storage Unit Processor Signal Interpreter Protection Scrap Shield Weapon Autogun Energy Gun Small Laser Ballistic Gun Autogun Ballistic Cannon Battle Cannon Launcher Mini Grenade Launcher Build | -11 -10 -10 -10 ------- Run | Yrd Mat Min Sub Slots Evolved . | . . . . Power . | . . . . Propulsion . | . . . . Utility . | . . . . Weapon . | . . . . Parts Attached 47 | 6 10 3 28 Power 6 | 1 2 . 3 Engine 4 | 1 1 . 2 Core 2 | . 1 . 1 Reactor . | . . . . Propulsion 11 | 2 2 . 7 Treads 2 | . 2 . . Leg 7 | 2 . . 5 Wheel 2 | . . . 2 Hover . | . . . . Flight . | . . . . Utility 13 | 1 2 3 7 Device 6 | . 1 2 3 Storage 2 | 1 1 . . Processor 1 | . . 1 . Hackware . | . . . . Protection 4 | . . . 4 Artifact . | . . . . Weapon 17 | 2 4 . 11 Energy Gun 2 | 2 . . . Energy Cannon . | . . . . Ballistic Gun 10 | . 4 . 6 Ballistic Cannon 3 | . . . 3 Launcher 2 | . . . 2 Special Weapon . | . . . . Impact Weapon . | . . . . Slashing Weapon . | . . . . Piercing Weapon . | . . . . Special Melee Weapon . | . . . . Unidentified Prototypes . | . . . . Parts Lost 7 | . 1 . 6 Power 2 | . 1 . 1 Propulsion 2 | . . . 2 Utility 3 | . . . 3 Weapon . | . . . . Highest Loss Streak 3 | . 1 . 3 To Critical Strikes . | . . . . Average Slot Usage (%) 85 | . 90 100 79 Engine 9 | . 8 . 11 Core 4 | . 5 14 1 Treads 8 | . 15 28 1 Leg 12 | . 12 . 16 Wheel 5 | . . . 8 Device 5 | . 5 7 4 Storage 5 | . 14 14 . Processor 1 | . . 6 . Protection 4 | . . . 6 Ballistic Gun 22 | . 24 28 20 Ballistic Cannon 4 | . . . 6 Naked Turns . | . . . . Heaviest Build 34 | 11 32 32 34 Greatest Support 40 | 20 40 40 40 Greatest Overweight (x) 10 | . . . 10 Average Overweight (x) . | . . . . Largest Inventory Capacity 15 | 8 15 15 15 Average Capacity 8 | 7 11 15 5 Most Carried 15 | 6 15 15 15 Average Carried 7 | 3 8 14 5 Final Capacity 15 | 8 15 15 5 Final Carried 15 | 6 15 15 3 Class Distribution -------------------- 73% | Mutant 13% | Subdweller-Mutant 10% | Scavenger-Mutant 3% | Derelict-Mutant Dominant Class ---------------- Mutant | -10/Materials Mutant | -10/Mines Mutant | -10/Subcaves Resources | -11 -10 -10 -10 ----------- Run | Yrd Mat Min Sub Matter Collected 1930 | 252 143 259 1276 Remotely . | . . . . Salvage Created 1229 | 30 284 175 740 Parts 77 | 7 17 11 42 Haulers Intercepted . | . . . . Recyclers Shooed 1 | . 1 . . Parts Field Recycled . | . . . . Retrieved Matter . | . . . . Parts Self-Destructed 9 | . . . 9 Prevented . | . . . . Kills | -11 -10 -10 -10 ------- Run | Yrd Mat Min Sub Combat Hostiles Destroyed 39 | . 10 4 25 Guns 27 | . 10 4 13 Cannons 5 | . . . 5 AOE 7 | . . . 7 Classes Destroyed 6 | 1 3 . 2 Worker 2 | . 2 . . Tunneler 2 | 2 . . . Swarmer 11 | . 6 . 5 Grunt 10 | . 4 4 2 Sentry 1 | . . . 1 Subdweller 17 | . . . 17 Best Kill Streak 5 | 2 4 2 5 Combat Bots Only 5 | . 3 2 5 Max Kills in Single Turn 4 | 1 2 1 4 Gunslinging 1 | . 1 . . Exploded 4 | . . . 4 Melee . | . . . . Uniques/NPCs Destroyed . | . . . . Combat | -11 -10 -10 -10 -------- Run | Yrd Mat Min Sub Hostile Shots Fired 222 | . 31 22 169 Missed 70 | . 6 3 61 Damage Taken 2229 | . 274 253 1702 Core 263 | . 31 46 186 Absorbed by Shields . | . . . . Core Remaining (%) 100 | 100 . . . Volleys Fired 122 | 3 25 13 81 Largest 2 | 2 2 2 2 Hottest 90 | 90 90 46 67 Shots Fired 246 | 6 50 26 164 Gun 200 | 6 50 26 118 Cannon 38 | . . . 38 Launcher 8 | . . . 8 Special . | . . . . Kinetic 214 | . 32 26 156 Thermal 24 | 6 18 . . Explosive 8 | . . . 8 Electromagnetic . | . . . . Robot Hit Streak 23 | 3 6 2 23 Robot Miss Streak 4 | 1 2 4 2 Penetration Max . | . . . . Secondary Targets 3 | . 1 . 2 Max Gunslinging Chain 1 | . 1 . 1 Shots Hit Robots 156 | 4 32 13 107 Core Hits 74 | 2 16 9 47 Critical Kills . | . . . . Critical Parts Destroyed . | . . . . Critical Strikes 1 | . . . 1 Blast 1 | . . . 1 Melee Attacks . | . . . . Impact . | . . . . Slashing . | . . . . Piercing . | . . . . Sneak Attacks . | . . . . Combat Hostiles . | . . . . Follow-up Attacks . | . . . . Damage Inflicted 3277 | 51 481 281 2464 Guns 2072 | 42 481 281 1268 Cannons 530 | . . . 530 Explosions 666 | . . . 666 Melee . | . . . . Ramming 9 | 9 . . . Kinetic 2431 | . 352 281 1798 Thermal 171 | 42 129 . . Explosive 666 | . . . 666 Electromagnetic . | . . . . Impact . | . . . . Slashing . | . . . . Piercing . | . . . . Highest Corruption 7 | . 7 7 7 Average Corruption 6 | . 6 7 7 Corruption Purged . | . . . . Corruption Blocked . | . . . . Effects 99 | . 3 20 76 Message Errors 25 | . 1 7 17 Matter Fused 17 | . 1 3 13 Heat Flow Errors 7 | . . 1 6 Energy Discharges 15 | . . 3 12 Parts Fused 3 | . . 1 2 Data Loss (minor) 12 | . . 4 8 Data Loss (major) 7 | . . 1 6 Misfires 6 | . . . 6 Alerts 4 | . 1 . 3 Weapon Failures 3 | . . . 3 Overload Shots . | . . . . Overflow Damage . | . . . . Projectiles . | . . . . Explosions . | . . . . Melee . | . . . . Knockbacks 7 | . . . 7 Impact . | . . . . Kinetic 7 | . . . 7 Secondary . | . . . . Self-Inflicted Damage 39 | . . . 39 Shots 2 | . . . 2 Rammed . | . . . . Targets Rammed 4 | 3 1 . . Kicked 4 | 3 1 . . Crushed . | . . . . Highest Temperature 288 | 60 288 119 266 Average Temperature 78 | 27 116 30 77 Received Heat Transfer 998 | . 117 111 770 Effects 1 | . 1 . . Energy Bleed 1 | . 1 . . Siege Activations . | . . . . Robots Corrupted . | . . . . Combat Hostiles . | . . . . Parts Fried . | . . . . Impact Corruptions . | . . . . Robots Melted . | . . . . Combat Hostiles . | . . . . Parts Melted 5 | . 2 . 3 Heat Transferred 447 | 112 335 . . Parts Sabotaged . | . . . . Parts Stolen . | . . . . Parts Stripped . | . . . . Power Chain Reactions . | . . . . Alert | -11 -10 -10 -10 ------- Run | Yrd Mat Min Sub Peak Influence 304 | 10 304 123 . Initial 73 | . 6 73 . Average 111 | 2 155 76 . Maximum Alert Level 1 | . 1 . . Low Security (%) 87 | 100 74 100 . Level 1 12 | . 25 . . Level 2 . | . . . . Level 3 . | . . . . Level 4 . | . . . . Level 5 . | . . . . High Security . | . . . . Max Security . | . . . . Squads Dispatched 1 | . 1 . . Investigation . | . . . . Extermination . | . . . . Reinforcement 1 | . 1 . . Assault . | . . . . Garrison . | . . . . Intercept . | . . . . Searches Triggered . | . . . . Construction Impeded . | . . . . Haulers Reinforced . | . . . . Active Scanning Responses . | . . . . Cargo Convoy Interrupts . | . . . . Stealth | -11 -10 -10 -10 --------- Run | Yrd Mat Min Sub Distress Signals . | . . . . Communications Jammed . | . . . . Distress Signals . | . . . . Times Spotted 81 | . 16 5 60 Peak Tracking Total 10 | . 3 2 10 Tactical Retreats 3 | . . . 3 Traps | -11 -10 -10 -10 ------- Run | Yrd Mat Min Sub Traps Triggered 6 | . 5 . 1 Indirectly . | . . . . Trap Hack Attempts . | . . . . Triggered . | . . . . Disarmed . | . . . . Reprogrammed . | . . . . Reused . | . . . . Traps Extracted . | . . . . Installed 4 | . . . 4 Triggered . | . . . . Machines | -11 -10 -10 -10 ---------- Run | Yrd Mat Min Sub Machines Disabled 5 | . 1 . 4 Max in Single Turn 2 | . 1 . 2 Machines Repaired . | . . . . Machines Dismantled . | . . . . Machines Sabotaged . | . . . . Overloaded Fab Kills . | . . . . Hacking | -11 -10 -10 -10 --------- Run | Yrd Mat Min Sub Machines Accessed 6 | . 5 . 1 Terminals 5 | . 5 . . Fabricators . | . . . . Repair Stations . | . . . . Recycling Units . | . . . . Scanalyzers . | . . . . Garrison Access . | . . . . Total Hacks 19 | . 17 . 2 Successful 13 | . 11 . 2 Failed 6 | . 6 . . Catastrophic . | . . . . Database Lockouts . | . . . . Manual 11 | . 11 . . Terminals 17 | . 17 . . Fabricators . | . . . . Repair Stations . | . . . . Recycling Units . | . . . . Scanalyzers . | . . . . Garrison Access . | . . . . Terminal Hacks 10 | . 8 . 2 Record 2 | . . . 2 Robot Analysis 3 | . 3 . . Prototype ID Bank 2 | . 2 . . Branch Access Points 1 | . 1 . . Locate Traps 1 | . 1 . . Registered Prototypes 1 | . 1 . . Fabricator Hacks . | . . . . Repair Station Hacks . | . . . . Recycling Unit Hacks . | . . . . Scanalyzer . | . . . . Garrison Access Hacks . | . . . . Unauthorized Hacks 3 | . 3 . . Terminals 3 | . 3 . . Botnet 3 | . 3 . . Fabricators . | . . . . Repair Stations . | . . . . Recycling Units . | . . . . Scanalyzers . | . . . . Garrison Access . | . . . . Data Cores Recovered . | . . . . Used . | . . . . Hacking Detections 5 | . 5 . . Full Trace Events . | . . . . Feedback Events . | . . . . Feedback Blocked . | . . . . Robot Schematics Acquired . | . . . . Robots Built . | . . . . Authchips . | . . . . Time . | . . . . Total Robot Build Rating . | . . . . Part Schematics Acquired . | . . . . Parts Built . | . . . . Authchips . | . . . . Time . | . . . . Total Part Build Rating . | . . . . Parts Repaired . | . . . . Time . | . . . . Parts Recycled . | . . . . Recycled Matter . | . . . . Retrieved Matter . | . . . . Retrieved Components . | . . . . Parts Scanalyzed . | . . . . Part Schematics Acquired . | . . . . Parts Damaged . | . . . . Bothacking | -11 -10 -10 -10 ------------ Run | Yrd Mat Min Sub Used RIF Installer . | . . . . Robots Hacked . | . . . . Non-combat . | . . . . Combat . | . . . . Robot Hacks Applied . | . . . . Relay Couplers Released . | . . . . Fabnet Peak Effective % . | . . . . Robots Rewired . | . . . . Allies Hacked . | . . . . Hacks Repelled . | . . . . Allies | -11 -10 -10 -10 -------- Run | Yrd Mat Min Sub Total Allies . | . . . . Largest Group . | . . . . Highest-Rated Group . | . . . . Highest-Rated Ally . | . . . . Total Orders . | . . . . Ally Attacks . | . . . . Total Damage . | . . . . Kills . | . . . . Allies Corrupted . | . . . . Allies Melted . | . . . . Intel | -11 -10 -10 -10 ------- Run | Yrd Mat Min Sub Robot Analysis Total 3 | . 3 . . Derelict Logs Recovered 2 | . . 1 1 Drone Launches . | . . . . Drone Recoveries . | . . . . Exploration | -11 -10 -10 -10 ------------- Run | Yrd Mat Min Sub Turns Passed 3817 | 89 748 658 2322 Spaces Moved 2427 | 54 434 379 1560 Core 93 | 4 . . 89 Treads 661 | . 218 379 64 Legs 1254 | 50 216 . 988 Wheels 419 | . . . 419 Hover . | . . . . Flight . | . . . . Fastest Speed 50 | 50 120 160 100 Average Speed 134 | 114 140 160 128 Slowest Speed 550 | 120 160 160 550 Overloaded Moves . | . . . . Propulsion Burnouts . | . . . . Robots Hopped . | . . . . Cave-ins Triggered . | . . . . Exploration Rate (%) 59 | 4 73 78 83 Regions Visited 3 Branch Regions 2 Pre-discovered Areas 1 | . . 1 . Known Exits Taken 2 | . 1 1 . Unknown Exits Taken 1 | 1 . . . Scrap Searched 13 | . . 2 11 Spaces Dug . | . . . . Terrain Destroyed 34 | . . . 34 Melee . | . . . . Projectile 2 | . . . 2 AOE 32 | . . . 32 Terrain Rammed . | . . . . Walls Destroyed . | . . . . Machines Disabled . | . . . . Actions | -11 -10 -10 -10 --------- Run | Yrd Mat Min Sub Total 2752 | 71 526 412 1743 Wait 70 | . 29 7 34 Move 2424 | 53 433 378 1560 Hop . | . . . . Pick Up 31 | 6 16 5 4 Fast Attach 23 | 6 4 . 13 Attach 3 | . . . 3 Detach 1 | . . . 1 Swap 21 | . 6 3 12 Drop 44 | . 12 6 26 Fire 122 | 3 25 13 81 Melee . | . . . . Ram . | . . . . Kick 4 | 3 1 . . Crush . | . . . . Escape Stasis . | . . . . Rewire . | . . . . Trap 4 | . . . 4 Miscellaneous 5 | . . . 5 Route ------- -11/Scrapyard -10/Materials (discovered 4 exits: *Mat x2 / *Min x2) -10/Mines (discovered 2 exits: *Mat / *Sub) -10/Subcaves (discovered 3 exits: [*Mat x2] / [*Rec]) History --------- Turn | Location | Event 26 | -11/Scrapyard | Discovered new exit (range 15) 90 | -11/Scrapyard | Entered Materials 113 | -10/Materials | Discovered new exit (range 16) 209 | -10/Materials | Discovered new exit (range 16) 277 | -10/Materials | Identified exit to Mines 304 | -10/Materials | Build established: Mutant 639 | -10/Materials | Discovered new exit (range 16) 838 | -10/Materials | Entered Mines 1104 | -10/Mines | Joined a pair of Derelicts in attacking an 0b10 outpost 1176 | -10/Mines | Discovered new exit (range 8) 1190 | -10/Mines | Identified exit to Materials 1226 | -10/Mines | Learned location of Storage (-7) 1488 | -10/Mines | Discovered new exit (range 6) 1494 | -10/Mines | Identified exit to Subcaves 1496 | -10/Mines | Entered Subcaves 1496 | -10/Subcaves | Learned Materials stockpile data 1522 | -10/Subcaves | Shifting Twisted Machinery released Sub. Machine Gun 1537 | -10/Subcaves | Shifting Twisted Machinery released Battle Cannon 1589 | -10/Subcaves | Ambushed by swarm of Subdwellers 1662 | -10/Subcaves | Lost 4 allies 1980 | -10/Subcaves | Discovered new exit (range 14) 2220 | -10/Subcaves | Visited Clippyterm 2686 | -10/Subcaves | Build established: Scavenger-Mutant 3112 | -10/Subcaves | Core integrity fell below 50% 3186 | -10/Subcaves | Discovered new exit (range 15) 3314 | -10/Subcaves | Shifting Twisted Machinery released Mak. Flight Unit 3316 | -10/Subcaves | Shifting Twisted Machinery released Sub. Beam Cannon 3361 | -10/Subcaves | A swath of the cavern ceiling suddenly collapsed 3420 | -10/Subcaves | Build established: Subdweller-Mutant 3613 | -10/Subcaves | Discovered new exit (range 15) 3626 | -10/Subcaves | Core integrity fell below 20% 3665 | -10/Subcaves | Lost 3 parts (1p2u) 3818 | -10/Subcaves | Destroyed by Z9-XCH(R) with Subdweller Laser Last Messages --------------- 03620_ Machine disabled. 03623_ System corrupted: Mni. Grenade Launcher failed to launch. 03623_ Lgt. Angular Momentum Engine destroyed. 03634_ Cobbler Unit destroyed. 03640_ System corrupted: Matter fused (-10). 03662_ S-10 Pest destroyed. 03666_ System corrupted: Matter fused (-5). 03666_ Sub. Monowheel destroyed. 03686_ Y-45 Defender destroyed. 03692_ The unstable cave ceiling collapses. 03692_ Acquired 21 matter. 03693_ Acquired 6 matter. 03694_ Acquired 9 matter. 03695_ System corrupted: Heat flow error (+212). 03710_ Acquired Sub. Optics. 03738_ System corrupted: Energy discharge (-31). 03760_ System corrupted: Barrage Gun jammed. 03769_ System corrupted: Matter fused (-6). 03785_ System corrupted: Component data lost. Map ----- +----------------------------------------------------+ | ?????????????????????????????????????????????????? | | ?????????????????????????????????????????????????? | | ?????????????????????????????????????????????????? | | ?????????????????????????????????????????????????? | | ?????????????????????????????????????????????????? | | ?????????????????????????????????????????????????? | | ?????????????????????????????????????????????????? | | ?????????????????????????????????????????????????? | | ?????????????????????????????????????????????????? | | ?????????????????????????????????????????????????? | | ?????????????????????????????????????????????????? | | ?????????????????????????????????????????????????? | | ?????????????????????????????????????????????????? | | ????????????????????????????????????? ???????????? | | ???????????????????????????????????? #??????????? | | ??????????????????????????????????? ##?????????? | | ?????????????????????????????????? #?????????? | | ????????????????????????????????? ??????????? | | ?????????????????????##???##???? ???????????? | | ????????? ????????## ?## ##?? ????????????? | | ???????? ?????#### ## #? ""?????????????? | | ???????? ?????; ## ???????????????? | | ??????? ???##;## " ?????????????????? | | ?????? ???#;;; "???????????????????? | | ????? ??????#; #????????????????????? | | ????### ###?????????#R @ #?????????????????????? | | ??###"#####"#?????????# #?????????????????????? | | ### "##""""##?????????# #?????????????????????? | | #####""####???????# ""##?????????????????????? | | "##"## #???????# """####??????????????????? | | """ ##??????## ""## #??????????????????? | | # ### ####???????# ""### #??????????????????? | | ###?#######??????????# "##"" ##?????????????????? | | ???####??????????????## "" #?????????????????? | | ??"" ####????#?????# """"#?????????????????? | | ??" ?## ?????# """##?????????????????? | | ?# ## ?????# """####?####??????????? | | ?# #??#### """#""### #??????????? | | #< ##?# " ##??????????? | | ?#" ### "" #???????????? | | ?#" # # #### ####???????????? | | ?#" # ## ### ###??###??????????????? | | ?#" ## ???## ### #?????????????????????? | | ??## ???###?????# ## #?????????????????????? | | ????????# #????# ## #?????????????????????? | | ????????# #???# #### ##?????????????????????? | | ##???????# #?## #??## ##????????????????????? | | #?????### ## #???# #########????????????? | | #????## ##?# #??## # #????????????? | | ##??## #### ##??# ##????????????? | +----------------------------------------------------+ Best States ------------- Heat Dissipation 39 Energy Generation 18 Energy Capacity 200 Matter Stores 300 Matter Capacity 300 Sight Range 21 Terrain Scan Density 10 Armor Coverage 800 Evasion (%) 55 Recoil Reduction 2 Item Schematics ----------------- None Robot Schematics ------------------ None Fabricated ------------ Nothing Alien Tech Used ----------------- None Achievements -------------- None Challenges ------------ None Game ------ Seed CoilIntegratedActivator Manual? 0 Play Time 00:38:02 Cumulative 50.4 hours Start 2024.07.31 @ 05:03:19 End 2024.07.31 @ 05:41:55 Sessions 1 Manual Loads 0 Difficulty Rogue Special Mode None Game No. 24 Rogue 24 Adventurer 0 Explorer 0 Win Type - Total 3 Types 1/0/0/2/0/0/0/0/0 Lore% 47 Gallery% 48 Achievement% 39 Wizard Run 0 Options --------- Layout 1 ASCII 0 Keyboard 0 Movement Numpad Keybinds 0 Fullscreen 1 Font 32/Tamsyn Map View 50x40 Zoom Use 0% Tactical HUD 1 Map Filters NONE Filters NONE Steam 1 RUN: c27240e1-63fd-418f-ae02-5a0e3e3de70b